bitfinex-derivatives/quotes_BTCF0:USTF0_20210705
["timestamp","ask_amount","ask_price","bid_price","bid_amount"]
[1625472505249,0.08666841,34209.0,34207.0,6.99654136]
[1625472505348,0.08666841,34209.0,34208.0,0.00426516]
[1625472505447,0.08666841,34209.0,34208.0,0.07385123]
[1625472505546,1.21910882,34214.0,34208.0,0.07385123]
[1625472505547,0.08666281,34211.0,34208.0,7.00747848]
[1625472505748,0.08666281,34211.0,34209.0,0.01058389]
[1625472505846,0.08666281,34211.0,34210.0,0.48115088]
[1625472505948,0.26581459,34212.0,34210.0,5.92427364]
[1625472506047,0.26581459,34212.0,34210.0,5.98327364]
[1625472506147,0.26581459,34212.0,34210.0,6.08753871]
[1625472506248,0.26581459,34212.0,34210.0,6.14653871]
[1625472506348,0.26581459,34212.0,34211.0,5.15534211]
[1625472506448,0.26581459,34212.0,34211.0,5.15960732]
[1625472506548,0.26581459,34212.0,34211.0,5.27760732]
[1625472507401,0.26581459,34212.0,34211.0,5.37760732]
[1625472507853,0.26581459,34212.0,34211.0,5.61818276]
[1625472507952,0.09266195,34212.0,34211.0,5.61818276]
[1625472508752,0.006,34212.0,34211.0,5.61818276]
[1625472510157,0.006,34212.0,34211.0,5.55918276]
[1625472510957,0.0924992,34212.0,34211.0,4.01258013]
[1625472511407,0.26532623,34212.0,34211.0,4.01258013]
[1625472512209,0.17882703,34212.0,34211.0,4.01258013]
[1625472512659,0.26530105,34212.0,34211.0,4.01258013]
[1625472514263,0.26530105,34212.0,34211.0,4.00831492]
[1625472516014,0.26530105,34212.0,34211.0,3.94931492]
[1625472516364,0.25930105,34212.0,34211.0,3.94931492]
[1625472516618,0.31630105,34212.0,34211.0,3.94931492]
[1625472516914,0.22982703,34212.0,34211.0,3.94931492]
[1625472517516,0.22982703,34212.0,34211.0,2.57455702]
[1625472517517,0.057,34212.0,34211.0,2.57455702]
[1625472518567,0.057,34212.0,34211.0,3.94736619]
[1625472519017,5.2468,34212.0,34211.0,3.94736619]
[1625472519168,5.2468,34212.0,34211.0,2.57455702]
[1625472519418,0.057,34212.0,34211.0,2.57455702]
[1625472519973,0.057,34212.0,34211.0,2.63355702]
[1625472520670,0.057,34212.0,34211.0,4.00610713]
[1625472520871,0.057,34212.0,34211.0,4.06510713]
[1625472520972,1.0353557,34214.0,34211.0,4.06510713]
[1625472521071,1.0353557,34214.0,34211.0,4.06937168]
[1625472521171,0.25910465,34213.0,34211.0,4.06937168]
[1625472521372,0.25910465,34213.0,34211.0,4.06510713]
[1625472521474,0.25910465,34213.0,34211.0,3.96510713]
[1625472521925,0.25910465,34213.0,34212.0,3.60017157]
[1625472522025,0.25910465,34213.0,34212.0,3.75917157]
[1625472522225,0.25910465,34213.0,34212.0,3.81817157]
[1625472522426,0.08642572,34213.0,34212.0,3.822436]
[1625472522826,0.25906323,34214.0,34212.0,3.822436]
[1625472523128,0.25906323,34214.0,34213.0,3.59901993]
[1625472523278,0.25906323,34214.0,34213.0,3.95901993]
[1625472523377,0.25906323,34214.0,34213.0,4.01801993]
[1625472523932,0.25906323,34214.0,34213.0,4.35859537]
[1625472524032,0.25906323,34214.0,34213.0,4.29959537]
[1625472524134,0.25906323,34214.0,34213.0,4.24059537]
[1625472524332,0.17265917,34214.0,34213.0,2.86954016]
[1625472524432,0.17265917,34214.0,34213.0,2.56854016]
[1625472524934,1.03487426,34215.0,34213.0,2.56854016]
[1625472525336,1.03487426,34215.0,34213.0,2.46854016]
[1625472525436,1.03487426,34215.0,34213.0,2.52754016]
[1625472525538,6.27137426,34215.0,34213.0,2.52754016]
[1625472525637,6.27137426,34215.0,34213.0,2.46854016]
[1625472525737,1.03487426,34215.0,34214.0,1.02879482]
[1625472526041,1.03487426,34215.0,34214.0,1.12879482]
[1625472526590,1.33236819,34216.0,34214.0,1.12879482]
[1625472526739,1.33236819,34216.0,34214.0,1.18779482]
[1625472526990,1.33236819,34216.0,34214.0,1.08779482]
[1625472527091,1.03478126,34215.0,34214.0,1.08779482]
[1625472527742,1.03478126,34215.0,34214.0,1.18779482]
[1625472527893,1.03478126,34215.0,34214.0,1.24679482]
[1625472527994,0.29757544,34216.0,34214.0,1.24679482]
[1625472527995,1.33233278,34216.0,34214.0,1.24679482]
[1625472528091,1.33233278,34216.0,34214.0,1.18779482]
[1625472528243,1.33233278,34216.0,34214.0,1.25105936]
[1625472528342,1.33233278,34216.0,34214.0,1.19205936]
[1625472528443,1.33233278,34216.0,34215.0,1.02832914]
[1625472528546,1.33233278,34216.0,34215.0,1.09159365]
[1625472529093,1.33233278,34216.0,34215.0,1.19159365]
[1625472530747,0.29757544,34216.0,34215.0,1.19159365]
[1625472532698,0.31244775,34216.0,34215.0,1.19159365]
[1625472533199,0.31244775,34216.0,34215.0,1.13259365]
[1625472533549,0.31244775,34216.0,34215.0,1.22069365]
[1625472534002,0.31244775,34216.0,34215.0,1.27969365]
[1625472534808,0.31244775,34216.0,34215.0,1.22069365]
[1625472535206,0.31244775,34216.0,34215.0,1.27969365]
[1625472535307,0.31244775,34216.0,34215.0,1.22069365]
[1625472535658,3.91034775,34216.0,34215.0,1.22069365]
[1625472535810,3.91034775,34216.0,34215.0,1.27969365]
[1625472536011,0.31244775,34216.0,34215.0,1.27969365]
[1625472536314,0.31244775,34216.0,34215.0,1.22069365]
[1625472536512,0.31244775,34216.0,34215.0,1.27969365]
[1625472538469,0.31244775,34216.0,34215.0,1.19159365]
[1625472539168,0.31244775,34216.0,34215.0,2.44870455]
[1625472539520,0.31244775,34216.0,34215.0,2.38970455]
[1625472539622,0.31244775,34216.0,34215.0,2.44870455]
[1625472539771,0.48500047,34216.0,34215.0,2.44870455]
[1625472540370,0.07187231,34216.0,34215.0,2.44870455]
[1625472540471,0.01487231,34216.0,34215.0,2.44870455]
[1625472541021,0.27378224,34216.0,34215.0,2.44870455]
[1625472541472,0.10123308,34216.0,34215.0,2.44870455]
[1625472541870,0.01487231,34216.0,34215.0,3.81723636]
[1625472542020,0.01487231,34216.0,34215.0,4.0578118]
[1625472544325,0.25890899,34217.0,34215.0,4.0578118]
[1625472544629,0.25890899,34217.0,34216.0,5.2047]
[1625472544731,0.25891778,34220.0,34216.0,8.85303917]
[1625472544830,0.25891778,34220.0,34216.0,8.91629418]
[1625472545077,0.01489945,34219.0,34217.0,0.00425496]
[1625472545179,0.01489945,34219.0,34217.0,0.06325496]
[1625472545278,0.01489945,34219.0,34218.0,1.36725803]
[1625472545380,0.01489945,34219.0,34218.0,1.42625803]
[1625472545479,0.01489945,34219.0,34218.0,1.52625803]
[1625472545631,0.25891778,34220.0,34218.0,1.53051294]
[1625472545732,0.24657544,34222.0,34218.0,3.75172092]
[1625472545733,0.25891041,34221.0,34218.0,3.75172092]
[1625472545880,0.25891041,34221.0,34219.0,0.00425487]
[1625472545986,0.25891041,34221.0,34219.0,0.34373487]
[1625472546080,0.25891041,34221.0,34220.0,0.48115088]
[1625472546181,0.25891041,34221.0,34220.0,2.76137525]
[1625472546482,0.25891041,34221.0,34220.0,2.76563009]
[1625472546634,0.25891041,34221.0,34220.0,2.86563009]
[1625472547784,0.08636093,34221.0,34220.0,2.86563009]
[1625472548485,0.2588985,34221.0,34220.0,2.86563009]
[1625472548985,0.2588985,34221.0,34220.0,2.80663009]
[1625472549086,0.1998985,34221.0,34220.0,2.86563009]
[1625472549287,0.02736093,34221.0,34220.0,2.86563009]
[1625472549487,1.04243498,34224.0,34220.0,2.86563009]
[1625472549589,1.04243498,34224.0,34221.0,4.4992]
[1625472549686,1.04243498,34224.0,34221.0,4.6172]
[1625472549837,0.008,34224.0,34223.0,5.1145399]
[1625472549942,0.008,34224.0,34223.0,5.1735399]
[1625472550036,0.008,34224.0,34223.0,5.2325399]
[1625472550137,0.008,34224.0,34223.0,5.71794449]
[1625472550336,0.008,34224.0,34223.0,5.71194449]
[1625472550890,0.008,34224.0,34223.0,5.81194449]
[1625472552901,0.008,34224.0,34223.0,10.80004449]
[1625472553298,0.008,34225.0,34223.0,10.79404449]
[1625472553599,0.008,34225.0,34224.0,0.00425357]
[1625472553698,0.008,34225.0,34224.0,0.12225357]
[1625472553799,0.008,34225.0,34224.0,3.86885338]
[1625472554903,0.008,34225.0,34224.0,3.96885338]
[1625472556356,0.006,34231.0,34224.0,3.96885338]
[1625472556706,0.006,34231.0,34224.0,3.86459981]
[1625472557357,0.006,34231.0,34230.0,0.1]
[1625472557457,0.006,34231.0,34230.0,0.218]
[1625472557608,0.006,34231.0,34230.0,1.23937833]
[1625472558157,0.006,34231.0,34230.0,1.90210465]
[1625472558861,0.006,34231.0,34230.0,1.96110465]
[1625472558960,0.006,34231.0,34230.0,1.90210465]
[1625472559413,0.006,34231.0,34230.0,1.96110465]
[1625472560212,0.006,34231.0,34230.0,0.93972632]
[1625472560963,0.006,34231.0,34230.0,0.88072632]
[1625472561464,0.006,34231.0,34230.0,0.93972632]
[1625472561567,0.006,34231.0,34230.0,1.96169049]
[1625472562519,0.006,34231.0,34230.0,3.15328748]
[1625472564922,0.006,34231.0,34230.0,3.83451463]
[1625472565374,0.17226771,34235.0,34230.0,3.83451463]
[1625472565722,0.17226771,34235.0,34230.0,3.73451463]
[1625472566123,1.09574577,34238.0,34230.0,3.73451463]
[1625472566124,0.17216665,34236.0,34234.0,0.68091991]
[1625472566223,0.17216665,34236.0,34235.0,0.48115088]
[1625472566624,0.17215096,34237.0,34235.0,0.48115088]
[1625472567023,0.17215096,34237.0,34236.0,0.17024143]
[1625472567123,0.17215096,34237.0,34236.0,0.41745143]
[1625472567325,0.17215096,34237.0,34236.0,0.24721]
[1625472568077,0.17215096,34237.0,34236.0,0.34721]
[1625472568176,0.17215096,34237.0,34236.0,0.58778544]
[1625472572034,0.18704425,34237.0,34236.0,0.58778544]
[1625472572590,0.17215096,34237.0,34236.0,0.58778544]
[1625472572947,0.22915096,34237.0,34236.0,0.58778544]
[1625472573037,0.22915096,34237.0,34236.0,0.34057544]
[1625472573138,0.24399655,34237.0,34236.0,0.34057544]
[1625472573990,0.07184559,34237.0,34236.0,0.34057544]
[1625472574190,0.13084559,34237.0,34236.0,0.34057544]
[1625472574290,0.18984559,34237.0,34236.0,0.34057544]
[1625472574444,1.22105541,34237.0,34236.0,0.34057544]
[1625472574543,1.9085859,34237.0,34236.0,0.34057544]
[1625472575048,3.11165723,34237.0,34236.0,0.34057544]
[1625472575296,3.11165723,34237.0,34235.0,0.48115088]
[1625472575297,3.11165723,34237.0,34230.0,0.24057544]
[1625472575397,3.11165723,34237.0,34229.0,0.17045166]
[1625472575597,4.48661065,34237.0,34228.0,0.1705077]
[1625472575817,0.0148474,34236.0,34228.0,0.1705077]
[1625472575898,0.1328474,34236.0,34228.0,0.1705077]
[1625472575999,0.057,34235.0,34228.0,0.1705077]
[1625472576100,0.17202434,34229.0,34227.0,0.17258997]
[1625472576198,0.057,34228.0,34227.0,0.17258997]
[1625472576298,0.62388544,34228.0,34227.0,0.17258997]
[1625472576602,0.62388544,34228.0,34227.0,0.1768625]
[1625472577151,0.63872723,34228.0,34227.0,0.1768625]
[1625472577351,0.58172723,34228.0,34227.0,0.1828625]
[1625472578204,0.56688544,34228.0,34227.0,0.1828625]
[1625472578556,0.56688544,34228.0,34227.0,0.01227253]
[1625472578855,0.24057544,34228.0,34227.0,0.07127253]
[1625472579056,0.24057544,34228.0,34227.0,1.77648201]
[1625472580009,0.24057544,34228.0,34227.0,2.96940103]
[1625472580210,0.24057544,34228.0,34227.0,3.02840103]
[1625472580308,0.24057544,34228.0,34227.0,3.02040103]
[1625472580309,0.23457544,34228.0,34227.0,3.02040103]
[1625472580409,0.23457544,34228.0,34227.0,4.38225749]
[1625472581312,0.23457544,34228.0,34227.0,5.91356611]
[1625472581412,0.23457544,34228.0,34227.0,6.21581611]
[1625472582614,0.24057544,34233.0,34227.0,6.21581611]
[1625472583016,0.24057544,34233.0,34228.0,3.7109]
[1625472583115,0.24057544,34233.0,34228.0,3.83317131]
[1625472583216,0.24057544,34233.0,34232.0,0.002]
[1625472583317,0.24057544,34233.0,34232.0,2.95306661]
[1625472583416,0.24057544,34233.0,34232.0,3.01206661]
[1625472583567,0.24057544,34233.0,34232.0,3.11633792]
[1625472584271,0.24057544,34233.0,34232.0,3.35691336]
[1625472586224,0.24057544,34233.0,34232.0,3.35491336]
[1625472587326,0.006,34239.0,34232.0,3.35491336]
[1625472587627,0.37310018,34241.0,34233.0,0.00427096]
[1625472587727,0.37310018,34241.0,34233.0,0.50427096]
[1625472587829,0.18004985,34241.0,34238.0,0.6800748]
[1625472587928,0.18004985,34241.0,34240.0,5.2259]
[1625472588027,0.18004985,34241.0,34238.0,0.9868948]
[1625472588128,0.18004985,34241.0,34240.0,0.059]
[1625472588329,0.18004985,34241.0,34240.0,0.59915088]
[1625472588430,0.18004985,34241.0,34240.0,0.60342139]
[1625472588630,0.008,34241.0,34240.0,1.62228365]
[1625472588730,0.008,34241.0,34240.0,1.72228365]
[1625472589234,0.008,34241.0,34240.0,1.71628365]
[1625472592141,0.008,34241.0,34240.0,1.71201314]
[1625472592242,0.008,34242.0,34240.0,1.70601314]
[1625472592342,0.008,34242.0,34240.0,1.71028358]
[1625472592641,0.008,34242.0,34240.0,1.70601314]
[1625472592741,0.008,34242.0,34240.0,1.60601314]
[1625472592892,0.008,34242.0,34241.0,4.7939]
[1625472592994,0.008,34242.0,34241.0,4.8529]
[1625472593093,0.008,34242.0,34241.0,5.87158513]
[1625472593393,0.008,34242.0,34241.0,5.97158513]
[1625472593696,0.008,34242.0,34241.0,1.17768513]
[1625472594450,0.008,34242.0,34241.0,0.159]
[1625472594797,0.008,34242.0,34241.0,0.66847951]
[1625472594999,0.008,34242.0,34241.0,0.60947951]
[1625472595250,0.008,34242.0,34241.0,0.60347951]
[1625472597357,0.008,34242.0,34241.0,0.66247951]
[1625472597457,0.008,34242.0,34241.0,0.60347951]
[1625472598269,0.24057544,34243.0,34241.0,0.60347951]
[1625472598511,0.41272153,34243.0,34242.0,0.51002971]
[1625472599013,0.24057544,34243.0,34242.0,0.51002971]
[1625472599163,0.24057544,34243.0,34242.0,0.56902971]
[1625472600665,0.24057544,34243.0,34242.0,0.51002971]
[1625472601317,0.41280392,34243.0,34242.0,0.51002971]
[1625472601615,0.41280392,34243.0,34242.0,0.61002971]
[1625472601868,0.75691764,34243.0,34242.0,0.61002971]
[1625472602367,0.75691764,34243.0,34242.0,0.27029283]
[1625472603422,0.75691764,34243.0,34242.0,0.61112757]
[1625472604277,1.79054377,34243.0,34242.0,0.61112757]
[1625472605680,0.75691764,34243.0,34242.0,1.63409503]
[1625472607436,1.79105391,34243.0,34242.0,1.63409503]
[1625472607669,1.85005391,34243.0,34242.0,1.63409503]
[1625472607787,1.90905391,34243.0,34242.0,0.61112757]
[1625472608046,1.9238485,34243.0,34242.0,0.61112757]
[1625472608138,5.9686485,34243.0,34242.0,0.61112757]
[1625472608288,7.17520599,34243.0,34242.0,0.1]
[1625472608387,7.41578143,34243.0,34242.0,0.1]
[1625472608688,7.41578143,34243.0,34242.0,0.27080933]
[1625472608689,8.79540185,34243.0,34242.0,0.27080933]
[1625472610193,8.79540185,34243.0,34242.0,0.1]
[1625472610853,8.79540185,34243.0,34238.0,1.02926298]
[1625472611159,2.24234806,34239.0,34238.0,0.004]
[1625472611243,2.54096806,34239.0,34238.0,0.004]
[1625472611444,2.55573991,34239.0,34238.0,0.004]
[1625472611747,3.93565326,34239.0,34238.0,0.004]
[1625472612445,4.1762287,34239.0,34238.0,0.004]
[1625472613097,2.79631535,34239.0,34238.0,0.004]
[1625472613296,2.79431535,34239.0,34238.0,0.004]
[1625472613749,2.73531535,34239.0,34238.0,0.004]
[1625472614198,2.7205435,34239.0,34238.0,0.004]
[1625472614450,2.7205435,34239.0,34238.0,0.24457544]
[1625472614556,6.5693435,34239.0,34238.0,0.24457544]
[1625472614701,6.58411428,34239.0,34238.0,0.24457544]
[1625472614801,2.73531428,34239.0,34238.0,0.24457544]
[1625472614904,1.28733392,34239.0,34238.0,0.004]
[1625472615003,1.03294314,34239.0,34238.0,0.004]
[1625472615254,1.10671397,34239.0,34238.0,0.004]
[1625472615352,1.04771397,34239.0,34238.0,0.004]
[1625472615552,1.03294314,34239.0,34238.0,0.004]
[1625472615959,1.09194314,34239.0,34238.0,0.004]
[1625472616059,1.03294314,34239.0,34238.0,0.004]
[1625472616310,1.03294314,34239.0,34237.0,1.19559421]
[1625472616408,1.09194314,34239.0,34237.0,1.19559421]
[1625472616510,1.27351858,34239.0,34238.0,0.24057544]
[1625472617110,0.24057544,34239.0,34238.0,1.43568524]
[1625472617662,0.24057544,34239.0,34238.0,1.43999276]
[1625472619364,0.24057544,34239.0,34238.0,1.43568524]
[1625472619665,0.24057544,34239.0,34238.0,1.43999281]
[1625472621218,0.24057544,34239.0,34238.0,1.74089281]
[1625472623171,0.29957544,34239.0,34238.0,1.74089281]
[1625472623370,0.31429703,34239.0,34238.0,1.73658524]
[1625472623471,0.31429703,34239.0,34238.0,0.54147544]
[1625472624070,0.31429703,34239.0,34238.0,0.24057544]
[1625472624773,0.31429703,34239.0,34238.0,0.24488311]
[1625472625222,0.31429703,34239.0,34238.0,1.44046237]
[1625472628478,0.31429703,34239.0,34238.0,1.49946237]
[1625472628981,0.29957544,34239.0,34238.0,1.49946237]
[1625472629082,0.29957544,34239.0,34238.0,2.86549758]
[1625472629285,0.3142684,34239.0,34238.0,2.86549758]
[1625472629384,0.3142684,34239.0,34238.0,1.49946237]
[1625472629631,0.3142684,34239.0,34238.0,1.44046237]
[1625472638905,1.52354436,34239.0,34238.0,1.44046237]
[1625472640408,0.3142684,34239.0,34238.0,0.24488311]
[1625472640913,2.90591584,34239.0,34238.0,0.24488311]
[1625472641613,2.90591584,34239.0,34210.0,0.057]
[1625472641733,2.90591584,34239.0,34231.0,1.54080731]
[1625472641845,2.96491584,34239.0,34231.0,1.54080731]
[1625472641915,1.55496484,34236.0,34228.0,0.01]
[1625472642015,1.61396484,34236.0,34228.0,0.01]
[1625472642117,1.67296484,34236.0,34233.0,0.00431204]
[1625472642319,1.67296484,34236.0,34228.0,0.01]
[1625472642417,3.9671,34231.0,34228.0,0.01]
[1625472642520,4.29835,34231.0,34228.0,0.01]
[1625472642619,0.72172632,34229.0,34228.0,0.01]
[1625472642819,0.78072632,34229.0,34228.0,0.01]
[1625472642917,0.79544949,34229.0,34228.0,0.01430737]
[1625472643017,0.73644949,34229.0,34228.0,0.01430737]
[1625472643317,0.73444949,34229.0,34228.0,0.00430737]
[1625472643567,1.77040391,34229.0,34228.0,1.03255944]
[1625472643767,1.75568074,34229.0,34228.0,1.02825207]
[1625472643967,1.75568074,34229.0,34228.0,1.03255907]
[1625472644117,1.81468074,34229.0,34228.0,1.03255907]
[1625472645021,1.82940335,34229.0,34228.0,1.03255907]
[1625472646120,1.81468074,34229.0,34228.0,1.03255907]
[1625472647825,2.50502218,34229.0,34228.0,1.71779856]
[1625472648427,1.46906776,34229.0,34228.0,1.71779856]
[1625472649277,2.50429802,34229.0,34228.0,1.71779856]
[1625472649580,2.50429802,34229.0,34228.0,1.71349156]
[1625472653037,0.77872632,34229.0,34228.0,1.71349156]
[1625472653136,0.71972632,34229.0,34228.0,1.71349156]
[1625472653287,0.71972632,34229.0,34228.0,1.71779854]
[1625472653440,1.06476898,34229.0,34228.0,1.71779854]
[1625472653893,0.71972632,34229.0,34228.0,1.71779854]
[1625472655941,1.02516632,34229.0,34228.0,1.71779854]
[1625472656351,1.37028065,34229.0,34228.0,1.71779854]
[1625472656793,1.37028065,34229.0,34228.0,3.08714183]
[1625472657645,1.37028065,34229.0,34228.0,3.08283485]
[1625472657844,1.37028065,34229.0,34228.0,3.08714227]
[1625472658249,1.71522727,34229.0,34228.0,1.71779898]
[1625472658697,1.37031473,34229.0,34228.0,3.08745206]
[1625472659748,1.02516632,34229.0,34228.0,1.71779898]
[1625472660051,1.02516632,34229.0,34228.0,1.71349156]
[1625472660251,1.02516632,34229.0,34228.0,1.71779913]
[1625472660352,1.71526722,34229.0,34228.0,1.71779913]
[1625472661906,1.71526722,34229.0,34228.0,2.91653388]
[1625472662610,1.02516632,34229.0,34228.0,4.28638115]
[1625472663162,1.37033061,34229.0,34228.0,4.28638115]
[1625472665112,1.06489061,34229.0,34228.0,4.28638115]
[1625472665867,0.71972632,34229.0,34228.0,4.28638115]
[1625472672681,1.06500943,34229.0,34228.0,4.28638115]
[1625472673182,1.06500943,34229.0,34228.0,4.38638115]
[1625472673531,1.06500943,34229.0,34228.0,3.01653388]
[1625472673532,1.42484103,34229.0,34228.0,3.01653388]
[1625472673884,2.44559145,34229.0,34228.0,3.01653388]
[1625472674082,2.46031311,34229.0,34228.0,3.01653388]
[1625472675237,7.19811311,34229.0,34228.0,3.01653388]
[1625472675537,6.16264113,34229.0,34228.0,3.01653388]
[1625472677642,7.19818709,34229.0,34228.0,3.01653388]
[1625472682152,2.46038709,34229.0,34228.0,3.01653388]
[1625472682353,0.73444798,34229.0,34228.0,0.10430757]
[1625472683656,0.73444798,34229.0,34228.0,3.01945635]
[1625472683657,6.2543074,34229.0,34228.0,3.01945635]
[1625472683955,2.4607074,34229.0,34228.0,3.01945635]
[1625472684512,7.1901074,34229.0,34228.0,3.01945635]
[1625472686616,7.2491074,34229.0,34228.0,3.01945635]
[1625472686822,8.45768217,34229.0,34228.0,3.01945635]
[1625472686921,8.51668217,34229.0,34223.0,1.54606245]
[1625472687121,0.24057544,34224.0,34223.0,1.54606245]
[1625472687220,0.51259544,34224.0,34223.0,0.002]
[1625472687321,0.63059544,34224.0,34223.0,0.002]
[1625472687419,0.64527238,34224.0,34223.0,0.00632198]
[1625472688122,0.64527238,34224.0,34218.0,0.24057544]
[1625472688223,0.64527238,34224.0,34215.0,1.54651669]
[1625472688324,0.70227238,34224.0,34215.0,1.54651669]
[1625472688422,0.70227238,34224.0,34215.0,1.35651669]
[1625472688522,0.01469158,34223.0,34215.0,1.35651669]
[1625472688623,0.07369158,34223.0,34215.0,1.35651669]
[1625472688723,5.1449,34216.0,34215.0,1.35651669]
[1625472688822,5.44205,34216.0,34203.0,2.0152074]
[1625472688921,0.057,34215.0,34203.0,1.7223074]
[1625472689021,0.116,34215.0,34203.0,1.7223074]
[1625472689121,0.116,34215.0,34202.0,1.72338002]
[1625472689122,0.48115088,34204.0,34202.0,1.72338002]
[1625472689221,1.28054176,34204.0,34202.0,1.72338002]
[1625472689524,1.28054176,34204.0,34203.0,0.00431824]
[1625472690173,1.28054176,34204.0,34202.0,0.00431875]
[1625472690381,1.28054176,34204.0,34203.0,0.00431872]
[1625472690623,1.28054176,34204.0,34201.0,0.00431872]
[1625472690824,1.28054176,34204.0,34201.0,0.06331872]
[1625472691177,1.28054176,34204.0,34202.0,0.00431861]
[1625472691377,1.28054176,34204.0,34202.0,0.06331861]
[1625472691728,1.28054176,34204.0,34203.0,0.00431861]
[1625472691926,1.28054176,34204.0,34203.0,0.06331861]
[1625472693780,1.28054176,34204.0,34203.0,0.00431861]
[1625472694082,1.28054176,34204.0,34202.0,0.00431856]
[1625472696037,1.28054176,34204.0,34201.0,0.00433336]
[1625472696237,1.28054176,34204.0,34203.0,0.00433336]
[1625472696487,1.28054176,34204.0,34201.0,0.00433333]
[1625472698141,1.28054176,34204.0,34200.0,0.00433307]
[1625472700795,1.28054176,34204.0,34203.0,1.54832361]
[1625472700995,1.28054176,34204.0,34203.0,1.60732361]
[1625472701195,1.28054176,34204.0,34203.0,2.12775736]
[1625472701947,1.03996632,34204.0,34203.0,3.5039957]
[1625472702698,0.72172632,34204.0,34203.0,3.5039957]
[1625472703200,0.72172632,34204.0,34203.0,3.74457114]
[1625472703500,0.72172632,34204.0,34203.0,3.80357114]
[1625472703810,0.72172632,34204.0,34203.0,3.79923756]
[1625472707164,0.72172632,34204.0,34203.0,5.00221599]
[1625472715485,0.92770632,34204.0,34203.0,5.00221599]
[1625472717137,0.92770632,34204.0,34203.0,6.0331884]
[1625472717938,0.92770632,34204.0,34203.0,6.0418534]
[1625472719693,0.72172632,34204.0,34203.0,6.0418534]
[1625472723206,0.96863632,34204.0,34203.0,6.0418534]
[1625472725606,0.72172632,34204.0,34203.0,6.0418534]
[1625472731476,0.72172632,34204.0,34203.0,6.3202534]
[1625472732078,0.72172632,34204.0,34203.0,8.04349566]
[1625472733181,0.72172632,34204.0,34203.0,13.07389566]
[1625472733531,0.72172632,34204.0,34203.0,8.0541114]
[1625472734432,0.006,34208.0,34203.0,8.0541114]
[1625472734634,0.006,34208.0,34204.0,0.01061363]
[1625472734733,0.006,34208.0,34204.0,0.12861363]
[1625472734885,0.006,34208.0,34207.0,7.40316913]
[1625472734985,0.008,34210.0,34207.0,7.46216913]
[1625472735084,0.008,34210.0,34207.0,7.52116913]
[1625472735186,0.008,34210.0,34208.0,0.01060337]
[1625472735286,0.008,34210.0,34208.0,0.06960337]
[1625472735386,0.008,34210.0,34209.0,0.25118149]
[1625472735488,0.008,34210.0,34209.0,0.31018149]
[1625472735586,0.008,34210.0,34209.0,7.77154277]
[1625472735685,0.008,34210.0,34209.0,7.78453531]
[1625472736291,0.008,34211.0,34209.0,7.77853531]
[1625472736489,0.008,34211.0,34210.0,0.01060582]
[1625472736588,0.008,34211.0,34210.0,0.40601582]
[1625472736693,0.008,34211.0,34210.0,0.46501582]
[1625472736789,0.008,34211.0,34210.0,7.87223286]
[1625472736988,0.008,34211.0,34210.0,12.86373286]
[1625472737088,0.008,34211.0,34210.0,7.87223286]
[1625472737488,0.008,34211.0,34210.0,7.88089566]
[1625472737789,0.008,34211.0,34210.0,7.87223286]
[1625472739291,0.008,34211.0,34210.0,7.86623286]
[1625472742349,0.24857544,34212.0,34210.0,12.96063286]
[1625472742449,0.24857544,34212.0,34210.0,7.86023286]
[1625472742649,0.24857544,34212.0,34211.0,0.00432977]
[1625472742750,0.24857544,34212.0,34211.0,0.12232977]
[1625472743201,0.24857544,34212.0,34211.0,7.53464837]
[1625472745203,0.24857544,34212.0,34211.0,7.47564837]
[1625472745304,0.24057544,34212.0,34211.0,7.47564837]
[1625472745804,0.24057544,34212.0,34211.0,7.53464837]
[1625472745904,0.24057544,34212.0,34211.0,7.86158837]
[1625472746357,0.24057544,34212.0,34211.0,7.80258837]
[1625472746557,0.24057544,34212.0,34211.0,7.86158837]
[1625472747057,0.24057544,34212.0,34211.0,8.55199834]
[1625472747407,0.24057544,34212.0,34211.0,8.56247195]
[1625472754169,0.24057544,34212.0,34211.0,8.50347195]
[1625472754271,0.24057544,34212.0,34211.0,8.49299834]
[1625472754621,5.30777544,34212.0,34211.0,8.49299834]
[1625472754722,5.30777544,34212.0,34211.0,6.44226332]
[1625472754822,5.30777544,34212.0,34211.0,6.50126332]
[1625472754922,5.30777544,34212.0,34211.0,6.44226332]
[1625472755076,5.30777544,34212.0,34211.0,8.16838637]
[1625472755172,0.49400544,34212.0,34211.0,8.16838637]
[1625472755426,0.49400544,34212.0,34211.0,6.44226332]
[1625472758732,0.49400544,34212.0,34211.0,6.38326332]
[1625472758934,0.55300544,34212.0,34211.0,6.38326332]
[1625472759383,0.55300544,34212.0,34211.0,4.8318478]
[1625472759384,0.98413666,34212.0,34211.0,4.8318478]
[1625472759734,0.92513666,34212.0,34211.0,4.8318478]
[1625472759837,0.98413666,34212.0,34211.0,4.8318478]
[1625472759935,0.89780703,34212.0,34211.0,4.8318478]
[1625472760386,1.41485631,34212.0,34211.0,4.8318478]
[1625472760887,0.89780703,34212.0,34211.0,4.8318478]
[1625472761440,1.01128025,34212.0,34211.0,4.8318478]
[1625472761640,1.01128025,34212.0,34211.0,4.8908478]
[1625472761941,0.7528098,34212.0,34211.0,4.8908478]
[1625472762040,0.4993798,34212.0,34211.0,5.1014678]
[1625472762142,0.4993798,34212.0,34211.0,5.1604678]
[1625472762744,0.24057544,34212.0,34211.0,6.71438899]
[1625472764246,0.24057544,34212.0,34211.0,6.65538899]
[1625472764597,0.24057544,34212.0,34211.0,6.71438899]
[1625472765398,0.24057544,34212.0,34211.0,1.88687096]
[1625472765750,0.24057544,34212.0,34211.0,6.72180639]
[1625472767052,0.24057544,34212.0,34211.0,6.66280639]
[1625472767304,0.24057544,34212.0,34211.0,6.76280639]
[1625472769006,0.24057544,34212.0,34211.0,6.70380639]
[1625472769408,0.24057544,34212.0,34211.0,5.1498852]
[1625472769409,0.49928786,34212.0,34211.0,5.1498852]
[1625472769861,1.10201911,34212.0,34211.0,5.1498852]
[1625472771210,0.75759515,34212.0,34211.0,5.1498852]
[1625472771460,0.81659515,34212.0,34211.0,5.1498852]
[1625472771561,1.10970515,34212.0,34211.0,5.1498852]
[1625472771661,1.79842387,34212.0,34211.0,5.1498852]
[1625472774369,1.10945508,34212.0,34211.0,5.1498852]
[1625472774468,0.81634508,34212.0,34211.0,5.1498852]
[1625472777724,0.75734508,34212.0,34211.0,5.2088852]
[1625472777929,0.75738717,34212.0,34211.0,5.2088852]
[1625472778330,0.3268498,34212.0,34211.0,6.76340444]
[1625472778535,0.3268498,34212.0,34211.0,6.75907467]
[1625472778779,0.3268498,34212.0,34211.0,6.76340702]
[1625472781036,0.24057544,34212.0,34211.0,6.76340702]
[1625472782691,0.24057544,34212.0,34211.0,1.92847159]
[1625472782790,0.24057544,34212.0,34211.0,1.71785159]
[1625472783194,0.24057544,34212.0,34211.0,6.5546801]